Cogmind - Beta 13 X1 @@@ ROGUE MODE // 2023.10.21 @ 14:41:54 Player: Plexion Result: Destroyed by D-53 Grenadier with Mini Grenade Launcher Performance ------------- Evolutions (0) 0 Regions Visited (2) 400 Robots Destroyed (13) 65 Value Destroyed (304) 304 Prototype IDs (1) 20 Alien Tech Used (0) 0 Bonus (56) 56 TOTAL SCORE: 845 Bonus ------- Follower Combat Kills 56 Cogmind --------- Core Integrity 0/250 Matter 300/300 Energy 100/100 System Corruption 0% Temperature Cool (0) Movement Core (200) Ox3 Location -10/Mines Parts ------- > --- POWER (1) -------- (None) > --- PROPULSION (2) --- (None) > --- UTILITY (2) ------ Medium Storage Unit > --- WEAPON (2) ------- (None) > --- INVENTORY (10) --- Light Ion Engine Light Treads High-capacity Matter Pod (200) Experimental Sensor Array Medium Laser Grenade Launcher Grenade Launcher Grenade Launcher Grenade Launcher Peak State ------------ > --- POWER ------------ Ion Engine > --- PROPULSION ------- Light Treads Light Treads > --- UTILITY ---------- Medium Storage Unit Experimental Sensor Array > --- WEAPON ----------- Small Laser Assault Rifle > --- INVENTORY -------- Light Ion Engine Light Treads High-capacity Matter Pod Structural Scanner Medium Laser Grenade Launcher Grenade Launcher Grenade Launcher Grenade Launcher [Rating: 15] Favorites ----------- Power Ion Engine Engine Ion Engine Propulsion Light Treads Treads Light Treads Utility Structural Scanner Device Structural Scanner Storage Medium Storage Unit Weapon Small Laser Energy Gun Small Laser Ballistic Gun Assault Rifle Build | -11 -10 -10 ------- Run | Jun Mat Min Slots Evolved . | . . . Power . | . . . Propulsion . | . . . Utility . | . . . Weapon . | . . . Parts Attached 10 | 6 2 2 Power 1 | 1 . . Engine 1 | 1 . . Core . | . . . Reactor . | . . . Propulsion 2 | 2 . . Treads 2 | 2 . . Leg . | . . . Wheel . | . . . Hover . | . . . Flight . | . . . Utility 5 | 1 2 2 Device 3 | . 1 2 Storage 2 | 1 1 . Processor . | . . . Hackware . | . . . Protection . | . . . Artifact . | . . . Weapon 2 | 2 . . Energy Gun 1 | 1 . . Energy Cannon . | . . . Ballistic Gun 1 | 1 . . Ballistic Cannon . | . . . Launcher . | . . . Special Weapon . | . . . Impact Weapon . | . . . Slashing Weapon . | . . . Piercing Weapon . | . . . Special Melee Weapon . | . . . Unidentified Prototypes 1 | . . 1 Parts Lost 6 | . . 6 Power 1 | . . 1 Propulsion 2 | . . 2 Utility 1 | . . 1 Weapon 2 | . . 2 Highest Loss Streak 6 | . . 6 To Critical Strikes . | . . . Average Slot Usage (%) 98 | . 98 98 Engine 13 | . 14 13 Treads 27 | . 28 27 Device 13 | . 12 13 Storage 14 | . 14 14 Energy Gun 14 | . 14 14 Ballistic Gun 13 | . 14 13 Naked Turns . | . . . Heaviest Build 19 | 13 19 19 Greatest Support 40 | 40 40 40 Greatest Overweight (x) 3 | . . 3 Average Overweight (x) . | . . . Largest Inventory Capacity 10 | 8 10 10 Average Capacity 9 | 7 9 10 Most Carried 9 | 2 8 9 Average Carried 6 | . 6 8 Final Capacity 10 | 8 10 10 Final Carried 9 | 2 8 9 Class Distribution -------------------- 100% | Mutant Dominant Class ---------------- Mutant | -10/Materials Mutant | -10/Mines Resources | -11 -10 -10 ----------- Run | Jun Mat Min Matter Collected 577 | 227 175 175 Remotely . | . . . Salvage Created 408 | . 291 117 Parts 31 | . 25 6 Haulers Intercepted 1 | . 1 . Recyclers Shooed . | . . . Parts Field Recycled . | . . . Retrieved Matter . | . . . Parts Self-Destructed . | . . . Prevented . | . . . Kills | -11 -10 -10 ------- Run | Jun Mat Min Combat Hostiles Destroyed 7 | . 4 3 Guns 7 | . 4 3 Classes Destroyed 6 | . 5 1 Worker 1 | . . 1 Builder 1 | . 1 . Hauler 1 | . 1 . Mechanic 1 | . 1 . Operator 2 | . 2 . Grunt 7 | . 4 3 Best Kill Streak 3 | . 3 2 Combat Bots Only 2 | . 2 2 Max Kills in Single Turn 2 | . 2 1 Gunslinging . | . . . Exploded . | . . . Melee . | . . . Uniques/NPCs Destroyed . | . . . Combat | -11 -10 -10 -------- Run | Jun Mat Min Damage Taken 887 | . 161 726 Core 265 | . 34 231 Absorbed by Shields . | . . . Core Remaining (%) 100 | 100 . . Volleys Fired 32 | . 24 8 Largest 2 | . 2 2 Hottest 60 | . 60 60 Shots Fired 62 | . 47 15 Gun 62 | . 47 15 Cannon . | . . . Launcher . | . . . Special . | . . . Kinetic 31 | . 24 7 Thermal 31 | . 23 8 Explosive . | . . . Electromagnetic . | . . . Robot Hit Streak 15 | . 15 7 Robot Miss Streak 2 | . 2 1 Penetration Max . | . . . Secondary Targets 1 | . . 1 Max Gunslinging Chain 1 | . . 1 Shots Hit Robots 47 | . 34 13 Core Hits 23 | . 15 8 Critical Kills . | . . . Critical Parts Destroyed . | . . . Critical Strikes . | . . . Melee Attacks . | . . . Impact . | . . . Slashing . | . . . Piercing . | . . . Sneak Attacks . | . . . Combat Hostiles . | . . . Follow-up Attacks . | . . . Damage Inflicted 608 | . 430 178 Guns 574 | . 426 148 Cannons . | . . . Explosions . | . . . Melee . | . . . Ramming 34 | . 4 30 Kinetic 299 | . 240 59 Thermal 275 | . 186 89 Explosive . | . . . Electromagnetic . | . . . Impact . | . . . Slashing . | . . . Piercing . | . . . Highest Corruption . | . . . Average Corruption . | . . . Corruption Purged . | . . . Corruption Blocked . | . . . Overload Shots . | . . . Overflow Damage . | . . . Projectiles . | . . . Explosions . | . . . Melee . | . . . Knockbacks 1 | . . 1 Impact 1 | . . 1 Kinetic . | . . . Secondary . | . . . Self-Inflicted Damage . | . . . Shots . | . . . Rammed 6 | . 1 5 Targets Rammed 7 | . 1 6 Kicked . | . . . Crushed 1 | . . 1 Highest Temperature 54 | . 54 24 Average Temperature 21 | . 23 16 Received Heat Transfer 143 | . 84 59 Siege Activations . | . . . Robots Corrupted . | . . . Combat Hostiles . | . . . Parts Fried . | . . . Impact Corruptions . | . . . Robots Melted . | . . . Combat Hostiles . | . . . Parts Melted . | . . . Heat Transferred 625 | . 425 200 Parts Sabotaged . | . . . Parts Stolen . | . . . Parts Stripped . | . . . Power Chain Reactions . | . . . Missiles Intercepted . | . . . Alert | -11 -10 -10 ------- Run | Jun Mat Min Peak Influence 255 | . 157 255 Initial 61 | . . 61 Average 118 | . 74 173 Maximum Alert Level 1 | . . 1 Low Security (%) 72 | 100 100 45 Level 1 27 | . . 54 Level 2 . | . . . Level 3 . | . . . Level 4 . | . . . Level 5 . | . . . High Security . | . . . Max Security . | . . . Squads Dispatched 3 | . 3 . Investigation 1 | . 1 . Extermination . | . . . Reinforcement 2 | . 2 . Assault . | . . . Garrison . | . . . Intercept . | . . . Searches Triggered . | . . . Construction Impeded . | . . . Haulers Reinforced . | . . . Active Scanning Responses . | . . . Cargo Convoy Interrupts . | . . . Stealth | -11 -10 -10 --------- Run | Jun Mat Min Distress Signals . | . . . Communications Jammed . | . . . Distress Signals . | . . . Times Spotted 34 | . 7 27 Peak Tracking Total 11 | . 2 11 Tactical Retreats . | . . . Traps | -11 -10 -10 ------- Run | Jun Mat Min Traps Triggered 1 | . 1 . Indirectly . | . . . Trap Hack Attempts . | . . . Triggered . | . . . Disarmed . | . . . Reprogrammed . | . . . Reused . | . . . Traps Extracted . | . . . Installed . | . . . Triggered . | . . . Machines | -11 -10 -10 ---------- Run | Jun Mat Min Machines Disabled . | . . . Max in Single Turn . | . . . Machines Repaired . | . . . Machines Sabotaged . | . . . Overloaded Fab Kills . | . . . Hacking | -11 -10 -10 --------- Run | Jun Mat Min Machines Accessed 1 | . 1 . Terminals 1 | . 1 . Fabricators . | . . . Repair Stations . | . . . Recycling Units . | . . . Scanalyzers . | . . . Garrison Access . | . . . Total Hacks 2 | . 2 . Successful . | . . . Failed 2 | . 2 . Catastrophic . | . . . Database Lockouts . | . . . Manual 2 | . 2 . Terminals 2 | . 2 . Fabricators . | . . . Repair Stations . | . . . Recycling Units . | . . . Scanalyzers . | . . . Garrison Access . | . . . Terminal Hacks . | . . . Fabricator Hacks . | . . . Repair Station Hacks . | . . . Recycling Unit Hacks . | . . . Scanalyzer . | . . . Garrison Access Hacks . | . . . Unauthorized Hacks . | . . . Terminals . | . . . Fabricators . | . . . Repair Stations . | . . . Recycling Units . | . . . Scanalyzers . | . . . Garrison Access . | . . . Data Cores Recovered . | . . . Used . | . . . Hacking Detections 1 | . 1 . Full Trace Events . | . . . Feedback Events . | . . . Feedback Blocked . | . . . Robot Schematics Acquired . | . . . Robots Built . | . . . Authchips . | . . . Time . | . . . Total Robot Build Rating . | . . . Part Schematics Acquired . | . . . Parts Built . | . . . Authchips . | . . . Time . | . . . Total Part Build Rating . | . . . Parts Repaired . | . . . Time . | . . . Parts Recycled . | . . . Recycled Matter . | . . . Retrieved Matter . | . . . Retrieved Components . | . . . Parts Scanalyzed . | . . . Part Schematics Acquired . | . . . Parts Damaged . | . . . Bothacking | -11 -10 -10 ------------ Run | Jun Mat Min Used RIF Installer . | . . . Robots Hacked . | . . . Non-combat . | . . . Combat . | . . . Robot Hacks Applied . | . . . Relay Couplers Released . | . . . Fabnet Peak Effective % . | . . . Robots Rewired . | . . . Allies Hacked . | . . . Hacks Repelled . | . . . Allies | -11 -10 -10 -------- Run | Jun Mat Min Total Allies 3 | . . 3 Largest Group 3 | . . 3 Highest-Rated Group 40 | . . 40 Highest-Rated Ally 16 | . . 16 Total Orders 1 | . . 1 STAY 1 | . . 1 Ally Attacks 12 | . . 12 Total Damage 126 | . . 126 Kills 4 | . . 4 Allies Corrupted . | . . . Allies Melted . | . . . Intel | -11 -10 -10 ------- Run | Jun Mat Min Robot Analysis Total . | . . . Derelict Logs Recovered 1 | . . 1 Drone Launches . | . . . Drone Recoveries . | . . . Exploration | -11 -10 -10 ------------- Run | Jun Mat Min Turns Passed 962 | 81 398 483 Spaces Moved 515 | 46 196 273 Core 3 | 2 . 1 Treads 512 | 44 196 272 Legs . | . . . Wheels . | . . . Hover . | . . . Flight . | . . . Fastest Speed 50 | 50 160 160 Average Speed 159 | 155 160 160 Slowest Speed 200 | 160 160 200 Overloaded Moves . | . . . Propulsion Burnouts . | . . . Robots Hopped . | . . . Cave-ins Triggered . | . . . Exploration Rate (%) 28 | 4 30 52 Regions Visited 2 Branch Regions 1 Pre-discovered Areas . | . . . Known Exits Taken . | . . . Unknown Exits Taken 2 | 1 1 . Scrap Searched . | . . . Spaces Dug . | . . . Terrain Destroyed . | . . . Melee . | . . . Projectile . | . . . AOE . | . . . Terrain Rammed . | . . . Walls Destroyed . | . . . Machines Disabled . | . . . Actions | -11 -10 -10 --------- Run | Jun Mat Min Total 585 | 53 233 299 Wait 13 | . 4 9 Move 513 | 45 195 273 Hop . | . . . Pick Up 9 | 2 6 1 Fast Attach 7 | 6 1 . Attach . | . . . Detach . | . . . Swap 3 | . 1 2 Drop 1 | . 1 . Fire 32 | . 24 8 Melee . | . . . Ram . | . . . Kick . | . . . Crush 7 | . 1 6 Escape Stasis . | . . . Rewire . | . . . Trap . | . . . Miscellaneous . | . . . Route ------- -11/Junkyard -10/Materials -10/Mines (discovered 3 exits: [*Mat x2] / [*Exi]) History --------- Turn | Location | Event 6 | -11/Junkyard | Discovered new exit (range 15) 82 | -11/Junkyard | Entered Materials 307 | -10/Materials | Discovered new exit (range 16) 315 | -10/Materials | Build established: Mutant 480 | -10/Materials | Entered Mines 485 | -10/Mines | Discovered new exit (range 15) 541 | -10/Mines | Met a Derelict bent on vengeance 567 | -10/Mines | Assisted by bots powering up and referring to "LRC-V3" 607 | -10/Mines | Learned Materials interactive machine intel 615 | -10/Mines | Discovered new exit (range 11) 689 | -10/Mines | Deemed a non-threat by the Exiles lab entrance 689 | -10/Mines | Discovered new exit (range 5) 788 | -10/Mines | Found a damaged Exp. Sensor Array with a note attached 791 | -10/Mines | Found Prototype Device 805 | -10/Mines | Identified Exp. Sensor Array 911 | -10/Mines | Assembled infested the area 959 | -10/Mines | Core integrity fell below 50% 961 | -10/Mines | Core integrity fell below 20% 963 | -10/Mines | Destroyed by D-53 Grenadier with Mini Grenade Launcher Last Messages --------------- 00952_ as-77732 destroyed. 00953_ The unstable cave ceiling collapses. 00953_ Aluminum Leg crushed. 00953_ as-50445 destroyed. 00953_ as-08879 destroyed. 00953_ Ion Engine destroyed. 00955_ The unstable cave ceiling collapses. 00955_ Structural Scanner destroyed. 00955_ as-26124 destroyed. 00955_ as-07517 destroyed. 00955_ as-18251 destroyed. 00955_ Lgt. Treads destroyed. 00957_ as-63935 destroyed. 00958_ as-66857 destroyed. 00959_ The unstable cave ceiling collapses. 00960_ Sml. Laser destroyed. 00961_ The unstable cave ceiling collapses. 00962_ K-01 Serf collects debris. 00963_ The unstable cave ceiling collapses. 00963_ as-30200 destroyed. Map ----- +----------------------------------------------------+ | ??????????????????????????????????????????? | | ??????????????????????????????????????????? | | ??????????????????????????????????????????? | | ??????????????????????????????????????????? | | ??????????????????????????????????????????? | | ??????????????????????????????????????????? | | ??????????????????????????????????????????? | | ??????????????????????????????????????????? | | ??????????????????????????????????????????? | | ??????????????????????????????????????????? | | ??????????????????????????????????????????? | | ????????????????????? #???????????????????? | | ???????????????????? #??????????????????? | | ???##########??????? ## ????????????????? | | ???##########?????## ???????????????## | | ???## ????### $% ??????????????## | | ???## !!! ???#### ###????????????? # | | ???## ! ????### ##???#####?### | | ???## ! ! ????## a ???########## | | ???## !! ????## ????### ### | | ???## #???## a ?????## ?? | | ????### ###### #?????## ???? | | ????## ##### ##???### ##????? | | ????## %* ####### ###????? | | ????### # # a ###### #####?????? | | ????###### k @ ###????????? | | ?????##### =%= ###????????? | | ???????## !## ## ###?????????? | | ???????### #### ######?????????? | | ???????## dd ### #####??????????? | | ???????## #### ?????????????? | | ???????### # # ######?????????????? | | ???????##### # #######?????????????? | | ????????###### # # ##?????????????????? | | ?????########## ###?????????????????? | | ?????########## ###?????????????????? | | ?????## # #####??????????????????? | | ???#### ####### ## #####??????????????????? | | ??##### ####### ## ##?????????????????????? | | ?#### ####### ##r##?????????????????????? | | #### ###### u##?###?????????????????? | | ### #######%" ##?????????????????? | | ## ####"### ##?????????????????? | | ## ### ### ##?????????????????? | | ## ##?????????????????????? | | ### ##?????????????????????? | | #### #####?????????????????????? | | ?#### ######?????????????????????? | | ??#### ########????????????????????? | | ???#### ################????????????? | +----------------------------------------------------+ Best States ------------- Heat Dissipation 25 Energy Generation 10 Energy Capacity 250 Matter Stores 300 Matter Capacity 300 Sight Range 16 Terrain Scan Density 10 Evasion (%) 40 Recoil Reduction 2 Item Schematics ----------------- None Robot Schematics ------------------ None Fabricated ------------ Nothing Alien Tech Used ----------------- None Achievements -------------- None Challenges ------------ None Game ------ Seed CryofiberLightningLegs Manual? 0 Play Time 00:05:26 Cumulative 452.4 hours Start 2023.10.21 @ 14:38:20 End 2023.10.21 @ 14:41:54 Sessions 1 Manual Loads 0 Difficulty Rogue Special Mode None Game No. 532 Rogue 445 Adventurer 87 Explorer 0 Win Type - Total 25 Types 8/0/14/1/1/0/1/0/0 Lore% 89 Gallery% 92 Achievement% 76 Wizard Run 0 Options --------- ASCII 0 Keyboard 1 Movement Numpad Keybinds 0 Fullscreen 1 Font 18/SmallcapsGlow Map View 76x50 Tactical HUD 1 Map Filters NONE Filters NONE Steam 1 RUN: f44501d7-4705-43ab-8a71-221979eef353